Cogmind - Beta 14 @@@ ROGUE MODE // 2024.09.17 @ 18:14:36 Player: rice Result: Self-destructed Performance ------------- Evolutions (4) 2000 Regions Visited (7) 1400 Robots Destroyed (75) 375 Value Destroyed (2375) 2375 Prototype IDs (6) 120 Alien Tech Used (0) 0 Bonus (60) 60 TOTAL SCORE: 6330 Bonus ------- Follower Combat Kills 60 Cogmind --------- Core Integrity 798/850 Matter 100/300 Energy 310/310 System Corruption 0% Temperature Warning (330) Movement Rolling (130) Ox2 Location -6/Factory Parts ------- > --- POWER (1) -------- Heavy Deuterium Engine > --- PROPULSION (4) --- Light Treads Light Treads Armored Huge Wheel > --- UTILITY (7) ------ Improved Heat Sink High-capacity Storage Unit Visual Processing Unit Advanced Targeting Computer Improved Medium Armor Plating Improved Medium Armor Plating > --- WEAPON (3) ------- Heavy Plasma Cannon > --- INVENTORY (20) --- Hybrid Deuterium Engine Hybrid Deuterium Engine Armored Treads Advanced Treads Thermal Generator Compact Matter Pod (0) Improved Particle Charger Improved Medium Armor Plating Improved Medium Armor Plating Gauss Cannon Gauss Cannon Improved Grenade Launcher Power Maul Peak State ------------ > --- POWER ------------ Heavy Deuterium Engine > --- PROPULSION ------- Light Treads Light Treads Armored Huge Wheel > --- UTILITY ---------- Cooling System High-capacity Storage Unit Visual Processing Unit Advanced Targeting Computer Improved Medium Armor Plating Improved Medium Armor Plating Hardlight Generator > --- WEAPON ----------- Cooled Particle Cannon Minigun Gauss Cannon > --- INVENTORY -------- Hybrid Deuterium Engine Hybrid Deuterium Engine Light Treads Light Treads Armored Treads Advanced Treads Thermal Generator Improved Heat Sink Compact Matter Pod Improved Particle Charger Improved Medium Armor Plating Improved Medium Armor Plating Improved Medium Armor Plating Heavy Plasma Cannon Gauss Cannon Gauss Cannon Gauss Cannon Gauss Cannon Improved Grenade Launcher Power Maul [Rating: 53] Favorites ----------- Power Ion Engine Engine Ion Engine Propulsion Aluminum Leg Treads Light Treads Leg Aluminum Leg Wheel Armored Huge Wheel Utility High-capacity Storage Unit Device Sensor Array Storage High-capacity Storage Unit Processor Advanced Targeting Computer Protection Improved Medium Armor Plating Weapon Light Assault Rifle Energy Gun EM Pulse Gun Energy Cannon Cooled Particle Cannon Ballistic Gun Light Assault Rifle Ballistic Cannon Gauss Cannon Launcher Grenade Launcher Build | -11 -10 -10 -10 -9 -8 -7 -6 ------- Run | Yrd Mat Min Exi Min Mat Fac Fac Slots Evolved 8 | . . . . . 4 2 2 Power . | . . . . . . . . Propulsion 2 | . . . . . 1 . 1 Utility 5 | . . . . . 2 2 1 Weapon 1 | . . . . . 1 . . Parts Attached 87 | 6 14 1 . 7 28 13 18 Power 11 | 1 3 . . 1 4 1 1 Engine 11 | 1 3 . . 1 4 1 1 Core . | . . . . . . . . Reactor . | . . . . . . . . Propulsion 20 | 2 5 . . 2 5 2 4 Treads 10 | . . . . 2 3 1 4 Leg 9 | 2 5 . . . 2 . . Wheel 1 | . . . . . . 1 . Hover . | . . . . . . . . Flight . | . . . . . . . . Utility 27 | 1 3 . . 2 6 8 7 Device 10 | . 1 . . 2 2 3 2 Storage 3 | 1 2 . . . . . . Processor 3 | . . . . . 1 2 . Hackware . | . . . . . . . . Protection 11 | . . . . . 3 3 5 Artifact . | . . . . . . . . Weapon 29 | 2 3 1 . 2 13 2 6 Energy Gun 11 | 2 2 . . . 7 . . Energy Cannon 3 | . . . . . . 1 2 Ballistic Gun 10 | . 1 . . 2 6 . 1 Ballistic Cannon 4 | . . . . . . 1 3 Launcher 1 | . . 1 . . . . . Special Weapon . | . . . . . . . . Impact Weapon . | . . . . . . . . Slashing Weapon . | . . . . . . . . Piercing Weapon . | . . . . . . . . Special Melee Weapon . | . . . . . . . . Unidentified Prototypes 6 | . . . . 1 3 2 . Parts Lost 11 | . 4 . . . 3 . 4 Power 1 | . . . . . 1 . . Propulsion . | . . . . . . . . Utility 4 | . . . . . 2 . 2 Weapon 6 | . 4 . . . . . 2 Highest Loss Streak 3 | . 2 . . . 1 . 3 To Critical Strikes . | . . . . . . . . Average Slot Usage (%) 95 | . 95 100 100 100 91 98 82 Engine 10 | . 13 14 14 14 8 7 5 Treads 9 | . . . . . 21 19 10 Leg 15 | . 27 28 28 27 5 . . Device 13 | . 12 14 14 14 10 15 11 Storage 11 | . 14 14 14 14 9 7 6 Processor 4 | . . . . . 1 15 13 Protection 3 | . . . . . 7 7 11 Energy Gun 6 | . 17 . . . 7 . . Energy Cannon 1 | . . . . . . 6 4 Ballistic Gun 12 | . 6 14 14 25 18 7 3 Ballistic Cannon 1 | . . . . . . 6 6 Launcher 2 | . . 14 14 2 . . . Peak Build Rating 53 | 6 8 8 8 19 33 47 53 Average Rating 21 | 4 7 7 8 10 24 41 47 On Entrance 15 | . 6 7 8 8 12 33 46 Naked Turns . | . . . . . . . . Heaviest Build 96 | 14 51 50 50 50 72 83 96 Greatest Support 60 | 20 20 20 20 40 60 60 28 Greatest Overweight (x) 23 | . 4 2 2 2 1 2 23 Average Overweight (x) 1 | . 1 2 2 1 . 1 3 Largest Inventory Capacity 20 | 8 20 20 20 20 20 20 20 Average Capacity 19 | 7 17 20 20 20 20 20 20 Most Carried 20 | 3 14 14 13 18 20 20 20 Average Carried 15 | 2 8 13 13 15 18 19 18 Final Capacity 20 | 8 20 20 20 20 20 20 20 Final Carried 20 | 3 14 13 13 15 19 20 13 Class Distribution -------------------- 38% | Scavenger-Mutant 25% | Tank 16% | Mutant 12% | Scavenger-Tank 3% | Gunner Dominant Class ---------------- Mutant | -10/Materials Scavenger-Mutant | -10/Mines Scavenger-Mutant | -10/Exiles Scavenger-Mutant | -9/Mines Tank | -8/Materials Tank | -7/Factory Tank | -6/Factory Resources | -11 -10 -10 -10 -9 -8 -7 -6 ----------- Run | Yrd Mat Min Exi Min Mat Fac Fac Matter Collected 2008 | 203 206 33 . 119 585 606 256 Remotely 341 | . . . . . 341 . . Salvage Created 2543 | . 508 83 . . 1035 530 387 Parts 166 | . 41 15 . . 66 30 14 Haulers Intercepted 4 | . 1 . . . 2 1 . Recyclers Shooed 3 | . . . . . 1 . 2 Parts Field Recycled . | . . . . . . . . Retrieved Matter . | . . . . . . . . Parts Self-Destructed . | . . . . . . . . Prevented . | . . . . . . . . Kills | -11 -10 -10 -10 -9 -8 -7 -6 ------- Run | Yrd Mat Min Exi Min Mat Fac Fac Combat Hostiles Destroyed 59 | . 10 8 . . 22 11 8 Guns 34 | . 9 . . . 22 2 1 Cannons 15 | . . . . . . 8 7 AOE 9 | . 1 8 . . . . . Classes Destroyed 13 | . 4 . . . 7 2 . Worker 2 | . . . . . 2 . . Builder 1 | . . . . . 1 . . Hauler 4 | . 1 . . . 2 1 . Recycler 2 | . . . . . 1 . 1 Operator 1 | . . . . . 1 . . Watcher 6 | . 3 . . . 1 2 . Swarmer 18 | . 3 6 . . 6 . 3 Grunt 26 | . 7 2 . . 8 4 5 Brawler 1 | . . . . . 1 . . Duelist 1 | . . . . . 1 . . Sentry 8 | . . . . . 6 2 . Hunter 1 | . . . . . . 1 . Programmer 4 | . . . . . . 4 . Best Kill Streak 5 | . 3 3 . . 5 2 3 Combat Bots Only 3 | . 3 3 . . 3 2 3 Max Kills in Single Turn 2 | . 1 2 . . 2 1 1 Gunslinging 1 | . . . . . 1 . . Exploded 2 | . 1 2 . . . . . Melee . | . . . . . . . . Uniques/NPCs Destroyed . | . . . . . . . . Combat | -11 -10 -10 -10 -9 -8 -7 -6 -------- Run | Yrd Mat Min Exi Min Mat Fac Fac Hostile Shots Fired 355 | . 60 26 . . 93 86 90 Missed 106 | . 21 11 . . 23 25 26 Damage Taken 3285 | . 474 155 . . 1013 506 1137 Core 346 | . 139 15 . . 92 48 52 Absorbed by Shields 152 | . . . . . . 128 24 Regen/Repaired (Parts) 143 | . . . . . . . 143 Core Remaining (%) 78 | 100 . . . 38 83 93 . Volleys Fired 209 | . 65 9 1 . 61 41 32 Largest 3 | . 2 1 1 . 3 3 3 Hottest 186 | . 105 30 30 . 116 112 186 Shots Fired 466 | . 95 9 1 . 164 123 74 Gun 309 | . 95 . . . 164 45 5 Cannon 147 | . . . . . . 78 69 Launcher 10 | . . 9 1 . . . . Special . | . . . . . . . . Kinetic 302 | . 41 . . . 127 82 52 Thermal 110 | . 10 . . . 37 41 22 Explosive 10 | . . 9 1 . . . . Electromagnetic 44 | . 44 . . . . . . Robot Hit Streak 20 | . 10 5 . . 17 20 6 Robot Miss Streak 5 | . 5 2 . . 5 3 4 Penetration Max 1 | . . . . . . 1 1 Secondary Targets 2 | . . . . . 2 . . Max Gunslinging Chain 1 | . . . . . 1 . . Shots Hit Robots 288 | . 55 2 . . 110 79 42 Core Hits 140 | 1 22 14 . 3 56 26 18 Critical Kills 1 | . . . . . . 1 . Critical Parts Destroyed . | . . . . . . . . Critical Strikes 12 | . . . . . 3 4 5 Burn 3 | . . . . . 3 . . Meltdown 1 | . . . . . . 1 . Blast 8 | . . . . . . 3 5 Melee Attacks . | . . . . . . . . Impact . | . . . . . . . . Slashing . | . . . . . . . . Piercing . | . . . . . . . . Sneak Attacks . | . . . . . . . . Combat Hostiles . | . . . . . . . . Follow-up Attacks . | . . . . . . . . Damage Inflicted 6205 | 6 743 395 . 11 1736 1978 1336 Guns 2940 | . 657 . . . 1704 511 68 Cannons 2664 | . . . . . . 1446 1218 Explosions 448 | . 53 395 . . . . . Melee . | . . . . . . . . Ramming 153 | 6 33 . . 11 32 21 50 Kinetic 3443 | . 210 . . . 1202 1143 888 Thermal 1830 | . 116 . . . 502 814 398 Explosive 395 | . . 395 . . . . . Electromagnetic 384 | . 384 . . . . . . Impact . | . . . . . . . . Slashing . | . . . . . . . . Piercing . | . . . . . . . . Highest Corruption 1 | . . . . . . 1 . Average Corruption 1 | . . . . . . 1 . Corruption Purged . | . . . . . . . . Corruption Blocked . | . . . . . . . . Effects 8 | . . . . . . 8 . Message Errors 1 | . . . . . . 1 . Matter Fused 2 | . . . . . . 2 . Heat Flow Errors 1 | . . . . . . 1 . Energy Discharges 3 | . . . . . . 3 . Alerts 1 | . . . . . . 1 . Overload Shots . | . . . . . . . . Overflow Damage 47 | . 3 . . . . 26 18 Projectiles 44 | . . . . . . 26 18 Explosions 3 | . 3 . . . . . . Melee . | . . . . . . . . Knockbacks 14 | . 1 . . . . 4 9 Impact 1 | . 1 . . . . . . Kinetic 13 | . . . . . . 4 9 Secondary . | . . . . . . . . Self-Inflicted Damage 102 | . 48 26 . . . 5 23 Shots 3 | . 1 2 . . . . . Rammed 13 | . . . . . 6 4 3 Targets Rammed 26 | 1 5 . . 5 8 4 3 Kicked 11 | 1 5 . . 5 . . . Crushed 2 | . . . . . 2 . . Highest Temperature 344 | . 135 5 . . 171 116 344 Average Temperature 58 | . 39 4 . . 47 22 126 Received Heat Transfer 1120 | . 201 15 . . 423 123 358 Effects 1 | . . . . . . . 1 Energy Bleed 1 | . . . . . . . 1 Siege Activations . | . . . . . . . . Robots Corrupted . | . . . . . . . . Combat Hostiles . | . . . . . . . . Parts Fried . | . . . . . . . . Impact Corruptions . | . . . . . . . . Robots Melted 1 | . . . . . . 1 . Combat Hostiles 1 | . . . . . . 1 . Parts Melted 5 | . . . . . 2 3 . Heat Transferred 3140 | . 198 . . . 1258 1073 611 Parts Sabotaged . | . . . . . . . . Parts Stolen . | . . . . . . . . Parts Stripped . | . . . . . . . . Power Chain Reactions 1 | . 1 . . . . . . Alert | -11 -10 -10 -10 -9 -8 -7 -6 ------- Run | Yrd Mat Min Exi Min Mat Fac Fac Peak Influence 227 | . 101 227 . 39 227 147 190 Initial 74 | . . . . . 14 74 70 Average 61 | . 35 71 . 3 104 70 86 Maximum Alert Level 1 | . . 1 . . 1 . . Low Security (%) 94 | 100 100 83 . 100 79 100 100 Level 1 5 | . . 16 . . 20 . . Level 2 . | . . . . . . . . Level 3 . | . . . . . . . . Level 4 . | . . . . . . . . Level 5 . | . . . . . . . . High Security . | . . . . . . . . Max Security . | . . . . . . . . Squads Dispatched 17 | . 1 . . . 4 9 3 Investigation 1 | . 1 . . . . . . Extermination 5 | . . . . . . 5 . Reinforcement 6 | . . . . . . 4 2 Assault . | . . . . . . . . Garrison 5 | . . . . . 4 . 1 Intercept . | . . . . . . . . Searches Triggered . | . . . . . . . . Construction Impeded . | . . . . . . . . Haulers Reinforced 4 | . . . . . . 2 2 Active Scanning Responses . | . . . . . . . . Cargo Convoy Interrupts . | . . . . . . . . Stealth | -11 -10 -10 -10 -9 -8 -7 -6 --------- Run | Yrd Mat Min Exi Min Mat Fac Fac Distress Signals 6 | . . . . . 4 1 1 Communications Jammed . | . . . . . . . . Distress Signals . | . . . . . . . . Times Spotted 100 | . 17 8 . 2 35 20 18 Peak Tracking Total 6 | . 3 3 . 2 5 2 6 Tactical Retreats 7 | . . . . . 5 . 2 Traps | -11 -10 -10 -10 -9 -8 -7 -6 ------- Run | Yrd Mat Min Exi Min Mat Fac Fac Traps Triggered 7 | . 2 . . . . . 5 Indirectly . | . . . . . . . . Trap Hack Attempts . | . . . . . . . . Triggered . | . . . . . . . . Disarmed . | . . . . . . . . Reprogrammed . | . . . . . . . . Reused . | . . . . . . . . Traps Extracted . | . . . . . . . . Installed . | . . . . . . . . Triggered . | . . . . . . . . Machines | -11 -10 -10 -10 -9 -8 -7 -6 ---------- Run | Yrd Mat Min Exi Min Mat Fac Fac Machines Disabled 4 | . . . . 1 . 1 2 Max in Single Turn 1 | . . . . . . 1 1 Machines Repaired . | . . . . . . . . Machines Dismantled . | . . . . . . . . Machines Sabotaged . | . . . . . . . . Overloaded Fab Kills . | . . . . . . . . Hacking | -11 -10 -10 -10 -9 -8 -7 -6 --------- Run | Yrd Mat Min Exi Min Mat Fac Fac Machines Accessed 22 | . 7 . 4 . 6 3 2 Terminals 13 | . 6 . . . 4 2 1 Fabricators . | . . . . . . . . Repair Stations 2 | . . . . . . 1 1 Recycling Units 2 | . 1 . . . 1 . . Scanalyzers . | . . . . . . . . Garrison Access 1 | . . . . . 1 . . Total Hacks 46 | . 19 . 4 . 14 3 6 Successful 28 | . 10 . 4 . 9 . 5 Failed 17 | . 8 . . . 5 3 1 Catastrophic 3 | . . . . . 1 2 . Database Lockouts 1 | . 1 . . . . . . Manual 30 | . 17 . . . 10 1 2 Terminals 34 | . 18 . . . 12 2 2 Fabricators . | . . . . . . . . Repair Stations 5 | . . . . . . 1 4 Recycling Units 2 | . 1 . . . 1 . . Scanalyzers . | . . . . . . . . Garrison Access 1 | . . . . . 1 . . Terminal Hacks 11 | . 3 . 4 . 4 . . Record 4 | . . . 4 . . . . Robot Analysis 1 | . 1 . . . . . . Emergency Access Points 1 | . 1 . . . . . . Unreport Threat 3 | . 1 . . . 2 . . Locate Traps 1 | . . . . . 1 . . Hauler Manifests 1 | . . . . . 1 . . Fabricator Hacks . | . . . . . . . . Repair Station Hacks 4 | . . . . . . . 4 Scan Component 2 | . . . . . . . 2 Repair 2 | . . . . . . . 2 Recycling Unit Hacks 2 | . 1 . . . 1 . . Retrieve Components 2 | . 1 . . . 1 . . Scanalyzer . | . . . . . . . . Garrison Access Hacks . | . . . . . . . . Unauthorized Hacks 11 | . 6 . . . 4 . 1 Terminals 11 | . 6 . . . 4 . 1 Track 1 | . 1 . . . . . . Botnet 8 | . 4 . . . 3 . 1 Operators 2 | . 1 . . . 1 . . Fabricators . | . . . . . . . . Repair Stations . | . . . . . . . . Recycling Units . | . . . . . . . . Scanalyzers . | . . . . . . . . Garrison Access . | . . . . . . . . Data Cores Recovered 1 | . . . . . 1 . . Used . | . . . . . . . . Hacking Detections 14 | . 6 . . . 4 2 2 Full Trace Events . | . . . . . . . . Feedback Events . | . . . . . . . . Feedback Blocked . | . . . . . . . . Robot Schematics Acquired . | . . . . . . . . Robots Built . | . . . . . . . . Authchips . | . . . . . . . . Time . | . . . . . . . . Total Robot Build Rating . | . . . . . . . . Part Schematics Acquired . | . . . . . . . . Parts Built . | . . . . . . . . Authchips . | . . . . . . . . Time . | . . . . . . . . Total Part Build Rating . | . . . . . . . . Parts Repaired 2 | . . . . . . . 2 Time 108 | . . . . . . . 108 Parts Recycled . | . . . . . . . . Recycled Matter . | . . . . . . . . Retrieved Matter . | . . . . . . . . Retrieved Components 11 | . 1 . . . 10 . . Parts Scanalyzed . | . . . . . . . . Part Schematics Acquired . | . . . . . . . . Parts Damaged . | . . . . . . . . Bothacking | -11 -10 -10 -10 -9 -8 -7 -6 ------------ Run | Yrd Mat Min Exi Min Mat Fac Fac Used RIF Installer . | . . . . . . . . Robots Hacked . | . . . . . . . . Non-combat . | . . . . . . . . Combat . | . . . . . . . . Robot Hacks Applied . | . . . . . . . . Relay Couplers Released . | . . . . . . . . Fabnet Peak Effective % . | . . . . . . . . Robots Rewired . | . . . . . . . . Allies Hacked . | . . . . . . . . Hacks Repelled . | . . . . . . . . Allies | -11 -10 -10 -10 -9 -8 -7 -6 -------- Run | Yrd Mat Min Exi Min Mat Fac Fac Total Allies 6 | . . 1 . 5 . . . Largest Group 5 | . . 1 1 5 2 . . Highest-Rated Group 86 | . . 31 31 86 32 . . Highest-Rated Ally 31 | . . 31 31 31 16 . . Total Orders . | . . . . . . . . Ally Attacks 20 | . . . . 18 2 . . Total Damage 175 | . . . . 175 . . . Kills 2 | . . . . 2 . . . Allies Corrupted . | . . . . . . . . Allies Melted . | . . . . . . . . Intel | -11 -10 -10 -10 -9 -8 -7 -6 ------- Run | Yrd Mat Min Exi Min Mat Fac Fac Robot Analysis Total 1 | . 1 . . . . . . Derelict Logs Recovered 1 | . . . . 1 . . . Drone Launches . | . . . . . . . . Drone Recoveries . | . . . . . . . . Exploration | -11 -10 -10 -10 -9 -8 -7 -6 ------------- Run | Yrd Mat Min Exi Min Mat Fac Fac Turns Passed 10520 | 101 2459 387 1295 1169 2220 2142 747 Spaces Moved 4065 | 77 1039 141 492 434 775 817 290 Core 15 | 6 . . . . . . 9 Treads 1261 | . . . . 2 775 483 1 Legs 2175 | 71 1039 141 492 432 . . . Wheels 614 | . . . . . . 334 280 Hover . | . . . . . . . . Flight . | . . . . . . . . Fastest Speed 50 | 50 120 260 260 240 160 130 130 Average Speed 222 | 114 213 260 260 259 239 195 171 Slowest Speed 1200 | 120 400 260 260 260 240 240 1200 Overloaded Moves . | . . . . . . . . Propulsion Burnouts . | . . . . . . . . Robots Hopped . | . . . . . . . . Cave-ins Triggered . | . . . . . . . . Exploration Rate (%) 46 | 4 90 33 89 79 46 21 8 Regions Visited 7 Branch Regions 3 Pre-discovered Areas . | . . . . . . . . Known Exits Taken 1 | . . . . . 1 . . Unknown Exits Taken 6 | 1 1 1 1 1 . 1 . Scrap Searched 1 | . . . . 1 . . . Spaces Dug 9 | . . 7 . . . 2 . Terrain Destroyed 89 | . 4 44 9 . . 13 19 Melee . | . . . . . . . . Projectile 32 | . . . . . . 13 19 AOE 57 | . 4 44 9 . . . . Terrain Rammed . | . . . . . . . . Walls Destroyed . | . . . . . . . . Machines Disabled . | . . . . . . . . Actions | -11 -10 -10 -10 -9 -8 -7 -6 --------- Run | Yrd Mat Min Exi Min Mat Fac Fac Total 5177 | 86 1184 154 508 466 1024 1279 476 Wait 684 | . 50 4 16 15 86 386 127 Move 4059 | 77 1038 140 491 433 774 816 290 Hop . | . . . . . . . . Pick Up 60 | 3 9 . . 3 34 8 3 Fast Attach 20 | 6 4 . . . 2 1 7 Attach 21 | . 3 1 . . 6 2 9 Detach 1 | . 1 . . . . . . Swap 46 | . 7 . . 7 20 10 2 Drop 52 | . 2 . . 3 33 11 3 Fire 209 | . 65 9 1 . 61 41 32 Melee . | . . . . . . . . Ram 3 | . . . . . . 1 2 Kick 10 | . 5 . . 5 . . . Crush 12 | . . . . . 8 3 1 Escape Stasis . | . . . . . . . . Rewire . | . . . . . . . . Trap . | . . . . . . . . Miscellaneous . | . . . . . . . . Route ------- -11/Scrapyard -10/Materials (discovered 3 exits: [*Mat x2] / [*Min]) -10/Mines -10/Exiles -9/Mines (discovered 2 exits: *Mat x2) -8/Materials (discovered 3 exits: *Fac x2 / Sto) -7/Factory -6/Factory History --------- Turn | Location | Event 3 | -11/Scrapyard | Discovered new exit (range 16) 102 | -11/Scrapyard | Entered Materials 303 | -10/Materials | Build established: Mutant 651 | -10/Materials | Discovered new exit (range 11) 790 | -10/Materials | Discovered new exit (range 11) 894 | -10/Materials | Discovered new exit (range 13) 1388 | -10/Materials | Central database locked down 1768 | -10/Materials | Build established: Scavenger-Mutant 2026 | -10/Materials | Core integrity fell below 50% 2561 | -10/Materials | Entered Mines 2908 | -10/Mines | Escorted by a lone wolf Derelict 2938 | -10/Mines | Deemed a non-threat by the Exiles lab entrance 2938 | -10/Mines | Discovered new exit (range 5) 2948 | -10/Mines | Entered Exiles 2948 | -10/Exiles | Found Exiles lab abandoned 2948 | -10/Exiles | Accompanied by 1 ally 4222 | -10/Exiles | Discovered new exit (range 10) 4243 | -10/Exiles | Entered Mines 4437 | -9/Mines | A weapon hastily lodged in a ceiling crevice suddenly fell to the ground 4474 | -9/Mines | Discovered new exit (range 10) 4619 | -9/Mines | Assisted by bots powering up and referring to "LRC-V3" 5040 | -9/Mines | Found a damaged Exp. Sensor Array with a note attached 5045 | -9/Mines | Found Prototype Device 5045 | -9/Mines | Identified Exp. Sensor Array 5227 | -9/Mines | Learned 8 Materials zone layouts 5348 | -9/Mines | Discovered new exit (range 15) 5412 | -9/Mines | Entered Materials 5412 | -8/Materials | Accompanied by 2 allies 5412 | -8/Materials | Evolved 4 slots: Propulsion x1, Utility x2, Weapon x1 5413 | -8/Materials | Identified exit to Factory 5413 | -8/Materials | Identified exit to Storage 5817 | -8/Materials | Build established: Scavenger-Skirmisher 6090 | -8/Materials | Garrison activated, responded to threat 6135 | -8/Materials | Build established: Tank 6899 | -8/Materials | Garrison activated, responded to threat 7298 | -8/Materials | Discovered exit to Factory (range 16) 7632 | -8/Materials | Build established: Gunner 7632 | -8/Materials | Entered Factory 7632 | -7/Factory | Evolved 2 slots: Utility x2 7971 | -7/Factory | Build established: Tank 8544 | -7/Factory | Build established: Scavenger-Tank 9150 | -7/Factory | Discovered new exit (range 18) 9569 | -7/Factory | Build established: Tank 9774 | -7/Factory | Entered another Factory area 9774 | -6/Factory | Evolved 2 slots: Propulsion x1, Utility x1 10017 | -6/Factory | Spotted B-75 Beast 10110 | -6/Factory | Repaired Minigun 10182 | -6/Factory | Repaired Cld. Particle Cannon 10479 | -6/Factory | Garrison activated, responded to threat 10521 | -6/Factory | Self-destructed Last Messages --------------- 10505_ H-66 Slayer knocked back. 10507_ K-01 Serf collects debris. 10507_ Penetrated by Slug. 10509_ Overheating: Energy bleed (-55). 10509_ Acquired 24 matter. 10510_ K-01 Serf collects debris. 10510_ Penetrated by Slug. 10510_ Slug penetrates Wall. 10515_ K-01 Serf collects debris. 10516_ Penetrated by Slug. 10516_ Acquired 46 matter. 10517_ Penetrated by Slug. 10518_ H-66 Slayer Flexi-carbon Leg blasted off. 10518_ H-66 Slayer knocked back. 10519_ K-01 Serf cleans the Assembly Bed. 10519_ Penetrated by Slug. 10519_ Gauss Cannon destroyed. 10519_ Penetrated by Slug. 10519_ Gauss Cannon destroyed. 10520_ U-05 Engineer builds a Door. Map ----- +----------------------------------------------------+ | # = #???###+### """"" """"" ???????? | | # ###### ??????? | | # + ??????? | | # ###### ?????? | | # #????# ?????? | | # #????# ?????? | | # #????#########+########## ???????? | | # #???????# #??????????????? | | # #???????# #??????????????? | | # #???????# """""" #??????????????? | | ##############???????# """""" #??????????????? | | ?????????????????????# """""" #??????????????? | | ?????????????????????# """""" #??????????????? | | ?????????????????????# #??????????????? | | ?????????????????????# """""" #??????????????? | | ?????????????????????# k"""""" #??????????????? | | ?????????????????????# """""" #??????????????? | | ?????????????????????# """""" #??????????????? | | ?????????????????????# #??????????????? | | ?????????????????????#;##;#########??????????????? | | ?????????????????????# #??????????????????????? | | ?????????????????????# #?##########???????????? | | ?????????????????????# # ???????????? | | ?????????????????????# *# """ "?????????????? | | ?????????????????????##;= =% """ "?????????????? | | ??????????????????????# ;@# """ "?????????????? | | ??????????????????????# ;%%" ???????????? | | ?????????????????????# ##h; """ """ ??????????? | | ????????????????????# #?#%;" """ """???????????? | | ????????????????????##??#k#T """???????????????? | | ????????????????????????#k#" m ???????????????? | | ????????????????????????# #" h ?????????????? | | ????????????????????????#k#" g ?????????????? | | ????????????????????????# #? u ????????????? | | ????????????????????????; #?######+###???????????? | | ????????????????????????# #??????? ?????????????? | | ????????????????????????# #???????? ????????????? | | ????????????????????????#%##### ??????? | | ???????????????????????#"% % ??????? | | ???????????????????????## ??????? | | ????????????????????????" ]""""""" """"""????????? | | ????????????????????????#%= """""" ""????????????? | | ????????????????????????#k% """"""???????????????? | | ????????????????????????#% """""????????????????? | | ???????????????????????? %% ??????????????????? | | ???????????????????????? """"??????????????????? | | ????????????????????????%%%"""???????????????????? | | ???????????????????????? """"??????????????????? | | ????????????????????????% ""????????????????????? | | ???????????????????????? ?????????????????????? | +----------------------------------------------------+ Best States ------------- Heat Dissipation 59 Energy Generation 18 Energy Capacity 800 Matter Stores 300 Matter Capacity 300 Sight Range 18 Robot Scan Range 14 Terrain Scan Density 10 Armor Coverage 600 Evasion (%) 55 Targeting Accuracy 8 Recoil Reduction 3 Item Schematics ----------------- None Robot Schematics ------------------ None Fabricated ------------ Nothing Alien Tech Used ----------------- None Achievements -------------- None Challenges ------------ None Game ------ Seed RecoilTeslaAutogun Manual? 0 Play Time 00:45:52 Cumulative 41.9 hours Start 2024.09.17 @ 17:30:21 End 2024.09.17 @ 18:14:36 Sessions 1 Manual Loads 0 Difficulty Rogue Special Mode None Game No. 79 Rogue 79 Adventurer 0 Explorer 0 Win Type - Total 0 Types 0/0/0/0/0/0/0/0/0 Lore% 15 Gallery% 35 Achievement% 30 Wizard Run 0 Options --------- Layout 1 ASCII 0 Keyboard 1 Movement Numpad Keybinds 0 Fullscreen 1 Font 24/Smallcaps Map View 50x35 Zoom Use 0% Tactical HUD 1 Map Filters NONE Filters NONE Steam 1 RUN: d3f92d1c-5888-4410-a03f-636dd447b64e